bitfinex/quotes_SOLUSD_20240612
["timestamp","ask_amount","ask_price","bid_price","bid_amount"]
[1718197398738,0.8096122,159.85,159.72,1.16807577]
[1718197399410,0.8096122,159.85,159.74,100.0]
[1718197399613,0.8096122,159.85,159.75,21.16785641]
[1718197400818,0.8096122,159.85,159.74,20.0]
[1718197401025,0.8096122,159.85,159.73,2.23273282]
[1718197401026,3.1242122,159.85,159.73,2.23273282]
[1718197401417,0.8096122,159.85,159.73,2.23273282]
[1718197401911,3.1242122,159.85,159.71,20.0]
[1718197402133,0.8096122,159.85,159.71,20.0]
[1718197402326,3.1243122,159.85,159.71,20.0]
[1718197402625,0.8096122,159.85,159.71,20.0]
[1718197403842,0.8096122,159.85,159.71,22.23301242]
[1718197404038,3.1243122,159.85,159.71,22.23301242]
[1718197404549,0.8096122,159.85,159.71,2.23301242]
[1718197404717,2.3151,159.83,159.71,2.23301242]
[1718197405218,2.3151,159.83,159.69,26.39]
[1718197405219,2.3151,159.82,159.69,26.39]
[1718197405418,2.3151,159.82,159.66,100.0]
[1718197405942,2.3151,159.82,159.72,8.992602]
[1718197406331,2.3151,159.82,159.73,1.25189595]
[1718197406541,0.8096122,159.85,159.73,1.25189595]
[1718197406920,0.8096122,159.85,159.73,21.25189595]
[1718197407132,0.8096122,159.85,159.74,1.25156613]
[1718197407648,0.8096122,159.85,159.74,3.48415918]
[1718197408312,0.8096122,159.85,159.74,2.23259305]
[1718197408636,0.8096122,159.85,159.73,20.0]
[1718197409338,0.8096122,159.85,159.74,0.81515324]
[1718197409538,0.8096122,159.85,159.75,0.17]
[1718197409746,0.8096122,159.85,159.75,22.23245329]
[1718197410538,0.8096122,159.85,159.74,100.17]
[1718197410741,0.8096122,159.85,159.75,20.0]
[1718197411335,0.8096122,159.85,159.74,100.0]
[1718197411515,0.8096122,159.85,159.75,20.0]
[1718197411715,0.8096122,159.85,159.74,100.0]
[1718197412016,0.8096122,159.85,159.75,20.0]
[1718197412617,0.8096122,159.85,159.8,0.17]
[1718197412818,0.8096122,159.85,159.8,20.68]
[1718197413221,0.8096122,159.85,159.82,0.17]
[1718197413534,0.8096122,159.85,159.82,20.0]
[1718197413717,0.8096122,159.85,159.83,100.17]
[1718197414040,0.8096122,159.85,159.84,20.0]
[1718197414240,0.8096122,159.85,159.84,16.6302]
[1718197414445,0.8096122,159.85,159.84,36.6302]
[1718197416226,0.8096122,159.85,159.84,36.8002]
[1718197416421,0.8096122,159.85,159.84,37.3102]
[1718197416728,0.8096122,159.85,159.84,36.6302]
[1718197420424,0.8096122,159.85,159.84,20.0]
[1718197421832,0.8096122,159.85,159.79,25.022799]
[1718197422927,0.8096122,159.85,159.8,20.0]
[1718197423128,0.8096122,159.85,159.8,120.0]
[1718197423744,0.8096122,159.85,159.84,0.17]
[1718197425035,0.8096122,159.85,159.83,20.51]
[1718197425234,0.8096122,159.85,159.84,0.17]
[1718197425586,0.8096122,159.85,159.83,20.51]
[1718197425587,0.8096122,159.85,159.83,20.0]
[1718197426337,0.8096122,159.85,159.82,20.0]
[1718197426839,0.8096122,159.85,159.81,2.23161512]
[1718197428742,0.8096122,159.85,159.8,6.0304]
[1718197430773,0.8096122,159.85,159.71,106.4684]
[1718197430951,0.8096122,159.85,159.72,22.23287261]
[1718197431150,0.8096122,159.85,159.72,38.26327261]
[1718197431361,0.8096122,159.85,159.74,100.0]
[1718197431553,0.8096122,159.85,159.75,20.0]
[1718197431752,0.8096122,159.85,159.72,138.26327261]
[1718197432362,0.8096122,159.85,159.73,0.17]
[1718197432679,0.8096122,159.85,159.73,0.68]
[1718197432980,0.8096122,159.85,159.75,0.17]
[1718197433159,0.8096122,159.85,159.75,20.51]
[1718197433359,0.8096122,159.85,159.75,20.0]
[1718197433779,6.3092,159.84,159.75,20.0]
[1718197433992,6.3092,159.84,159.72,18.26327261]
[1718197433993,6.3092,159.84,159.73,20.0]
[1718197434883,6.3092,159.84,159.74,100.0]
[1718197435086,6.3092,159.84,159.75,20.0]
[1718197435762,6.3092,159.84,159.76,100.51]
[1718197435955,6.3092,159.84,159.77,20.0]
[1718197436455,0.8096122,159.85,159.77,20.0]
[1718197437273,0.8096122,159.85,159.78,100.77514099]
[1718197437486,0.8096122,159.85,159.79,22.74189444]
[1718197437658,0.8096122,159.85,159.79,22.40189444]
[1718197438082,0.8096122,159.85,159.79,22.23189444]
[1718197438578,0.8096122,159.85,159.76,20.0]
[1718197438787,0.8096122,159.85,159.76,22.23231355]
[1718197439272,0.8096122,159.85,159.73,126.28]
[1718197439273,0.8096122,159.85,159.77,20.0]
[1718197439484,0.8096122,159.85,159.73,126.28]
[1718197439874,0.8096122,159.85,159.73,26.28]
[1718197440291,15.6379,159.84,159.73,26.28]
[1718197440485,15.6379,159.84,159.71,100.0]
[1718197440686,15.6379,159.84,159.73,20.0]
[1718197440869,15.6379,159.84,159.71,100.0]
[1718197441280,15.6379,159.84,159.75,100.0]
[1718197441875,0.8096122,159.85,159.77,100.0]
[1718197442100,0.8096122,159.85,159.79,100.0]
[1718197442401,0.8096122,159.85,159.81,100.0]
[1718197442584,0.8096122,159.85,159.82,20.51]
[1718197442777,0.8096122,159.85,159.83,100.0]
[1718197442979,0.8096122,159.85,159.84,20.0]
[1718197443684,6.1372,159.93,159.85,0.17]
[1718197443974,6.1372,159.93,159.85,100.68]
[1718197444181,6.1372,159.93,159.86,20.0]
[1718197445312,16.4091298,159.99,159.86,20.0]
[1718197445610,6.2344,159.98,159.87,100.68]
[1718197445776,6.2344,159.98,159.88,20.0]
[1718197445980,6.2344,159.98,159.86,20.0]
[1718197447185,6.2344,159.98,159.87,0.17]
[1718197447478,6.2344,159.98,159.86,20.0]
[1718197447686,6.2344,159.98,159.87,100.17]
[1718197447984,6.2344,159.98,159.88,20.0]
[1718197448300,6.20626,159.98,159.88,20.0]
[1718197449209,6.20626,159.98,159.89,100.0]
[1718197449387,6.20626,159.98,159.9,20.0]
[1718197449895,0.0390298,159.99,159.97,100.0]
[1718197450100,0.0390298,159.99,159.98,20.51]
[1718197450313,2.18619396,160.0,159.99,100.17]
[1718197450486,0.8096122,160.01,159.99,146.96]
[1718197450690,1.9460378,160.02,160.01,100.17]
[1718197450887,1.9460378,160.02,160.01,120.68]
[1718197451093,1.9460378,160.02,160.01,20.0]
[1718197451292,16.2642,160.14,160.04,100.0]
[1718197451293,22.5472,160.14,160.04,100.0]
[1718197451616,22.5472,160.14,160.05,20.0]
[1718197451913,22.5472,160.14,160.06,2.22812953]
[1718197452415,22.5472,160.14,160.05,20.0]
[1718197452584,22.5472,160.14,160.06,100.34]
[1718197452585,6.283,160.14,160.06,100.34]
[1718197452788,6.283,160.14,160.04,26.28]
[1718197452982,6.283,160.14,160.05,20.0]
[1718197453194,6.283,160.14,160.03,20.0]
[1718197453992,6.283,160.14,160.06,100.0]
[1718197454216,6.283,160.14,160.07,20.68]
[1718197454584,6.283,160.14,160.08,100.0]
[1718197454787,0.8096122,160.17,160.09,20.68]
[1718197455407,0.8096122,160.17,160.09,20.0]
[1718197455620,0.8096122,160.17,160.08,20.0]
[1718197455989,0.8096122,160.17,160.1,100.0]
[1718197456211,0.8096122,160.17,160.11,20.0]
[1718197456692,0.8096122,160.17,160.09,2.90771199]
[1718197456693,0.8096122,160.17,160.09,22.22771199]
[1718197456894,0.8096122,160.17,160.09,2.22771199]
[1718197457492,0.8096122,160.17,160.07,20.0]
[1718197457897,22.6787,160.16,160.07,20.0]
[1718197458095,2.3104,160.14,159.99,100.0]
[1718197458290,22.6787,160.16,160.05,100.0]
[1718197458817,22.6787,160.16,160.0,26.28]
[1718197458818,6.3449,160.16,160.1,100.0]
[1718197459314,0.8096122,160.17,160.1,100.0]
[1718197459716,0.8096122,160.17,160.11,20.0]
[1718197460606,0.8096122,160.17,160.12,100.0]
[1718197460814,6.4617,160.27,160.14,126.28]
[1718197461197,6.4617,160.27,160.15,20.0]
[1718197461389,6.6003,160.34,160.18,100.0]
[1718197461589,6.6003,160.34,160.19,20.0]
[1718197461839,6.6003,160.34,160.21,100.17]
[1718197462124,6.6003,160.34,160.22,20.0]
[1718197462328,6.6003,160.34,160.16,26.28]
[1718197462505,6.6003,160.34,160.17,20.0]
[1718197462691,2.3081,160.3,160.17,20.0]
[1718197462894,2.3081,160.3,160.1,107.30056665]
[1718197462895,6.5025,160.28,160.1,107.30056665]
[1718197463227,21.7384,160.26,160.06,100.0]
[1718197463405,4.6182,160.24,160.06,100.0]
[1718197463723,0.17,160.22,160.06,100.0]
[1718197464023,2.3102,160.16,160.0,100.0]
[1718197464325,0.17,160.17,160.0,126.28]
[1718197464619,0.68,160.17,160.0,126.28]
[1718197464800,16.5372,160.18,160.03,26.2]
[1718197464996,2.65,160.17,160.01,100.0]
[1718197465212,2.82,160.17,160.01,100.0]
[1718197465597,0.17,160.16,160.0,26.2]
[1718197465821,0.17,160.16,159.99,2.2291044]
[1718197466124,6.2008,160.1,159.97,6.0097]
[1718197466329,0.68,160.09,159.97,6.0097]
[1718197466529,0.51,160.09,159.97,6.0097]
[1718197467199,0.34,160.09,159.97,6.0097]
[1718197467398,2.6513,160.08,159.97,6.0097]
[1718197467598,0.34,160.07,159.97,6.0097]
[1718197467799,0.34,160.08,159.97,6.0097]
[1718197468033,0.34,160.07,159.97,6.0097]
[1718197468199,2.4816,160.06,159.97,6.0097]
[1718197468397,0.17,160.06,159.97,6.0097]
[1718197468812,0.17,160.06,159.92,100.0]
[1718197469007,2.4816,160.06,159.92,100.0]
[1718197469217,0.17,160.06,159.92,100.0]
[1718197469727,6.2008,160.1,159.94,100.0]
[1718197469895,0.17,160.09,159.94,126.2]
[1718197470100,0.34,160.09,159.94,126.2]
[1718197470520,6.2008,160.1,159.94,126.2]
[1718197470707,6.2008,160.1,159.95,20.0]
[1718197471007,6.2008,160.1,159.98,100.0]
[1718197471199,6.2008,160.1,159.99,20.0]
[1718197473096,6.2008,160.1,159.99,120.0]
[1718197473296,6.2008,160.1,159.99,20.0]
[1718197473932,8.5118,160.1,159.94,2.22980126]
[1718197474228,6.2008,160.1,159.94,2.22980126]
[1718197474413,2.3115,160.07,159.94,2.22980126]
[1718197474600,0.17,160.09,159.94,2.22980126]
[1718197474805,0.68,160.09,159.94,2.22980126]
[1718197475001,0.17,160.09,159.94,2.22980126]
[1718197475201,2.3113,160.08,159.94,2.22980126]
[1718197475404,0.17,160.09,159.95,100.0]
[1718197475604,0.34,160.09,159.94,2.22980126]
[1718197475833,0.34,160.08,159.94,2.22980126]
[1718197476198,0.34,160.08,159.95,0.51718296]
[1718197476415,2.6513,160.08,159.95,0.51718296]
[1718197476620,0.17,160.07,159.95,0.51718296]
[1718197476816,15.325,160.06,159.95,0.51718296]
[1718197478216,15.325,160.06,159.95,20.51718296]
[1718197478534,15.325,160.06,159.95,20.0]
[1718197478702,15.325,160.06,159.94,102.22980126]
[1718197478902,15.325,160.06,159.95,22.22966185]
[1718197479106,15.325,160.06,159.95,2.22966185]
[1718197479331,9.2418,160.15,159.95,2.22966185]
[1718197479332,6.0085,160.19,159.97,100.0]
[1718197479520,2.3103,160.15,159.99,126.2]
[1718197479719,2.3103,160.15,160.0,20.0]
[1718197480228,2.3104,160.14,160.0,20.0]
[1718197481303,6.162,160.18,160.05,100.0]
[1718197481504,8.4719,160.18,160.06,20.0]
[1718197481740,2.31,160.17,160.06,20.0]
[1718197481917,6.162,160.18,160.06,20.0]
[1718197482155,2.3102,160.16,160.04,20.0]
[1718197482311,2.3103,160.15,160.04,20.0]
[1718197482515,6.162,160.18,160.01,22.22882578]
[1718197482854,6.162,160.18,159.96,26.2]
[1718197482855,4.621,160.14,159.97,20.0]
[1718197483012,0.17,160.11,159.97,44.993625]
[1718197483203,0.34,160.11,159.97,44.993625]
[1718197483406,2.4806,160.13,159.97,44.993625]
[1718197483407,0.17,160.12,159.97,147.22300809]
[1718197483651,2.3101,160.17,160.01,100.0]
[1718197483813,2.3101,160.16,160.01,100.0]
[1718197484132,2.3103,160.15,160.02,20.0]
[1718197484328,4.6206,160.15,160.02,20.0]
[1718197484533,6.162,160.18,160.02,20.0]
[1718197484744,2.3103,160.16,160.01,20.0]
[1718197484926,2.3103,160.15,160.01,20.0]
[1718197485123,2.3104,160.14,160.01,20.0]
[1718197485324,2.3103,160.16,160.01,20.0]
[1718197485529,2.8203,160.15,160.01,20.0]
[1718197486252,2.3106,160.13,160.01,20.0]
[1718197486447,2.311,160.1,159.97,27.22300809]
[1718197486748,0.17,160.12,159.97,2.22938309]
[1718197486749,0.34,160.11,159.97,2.22938309]
[1718197486934,0.17,160.1,159.97,2.22938309]
[1718197487245,2.4809,160.11,159.97,4.72869309]
[1718197487544,0.51,160.1,159.97,4.72869309]
[1718197487752,0.17,160.09,159.97,4.72869309]
[1718197488041,0.34,160.1,159.97,4.72869309]
[1718197488423,0.17,160.1,159.97,4.72869309]
[1718197488623,2.3101,160.17,159.99,126.23]
[1718197488824,2.3102,160.16,160.0,20.0]
[1718197489029,2.3103,160.15,160.0,20.0]
[1718197489252,6.162,160.18,160.0,20.0]
[1718197489436,2.3103,160.15,160.0,20.0]
[1718197489637,106.162,160.18,160.0,20.0]
[1718197489933,4.6201,160.17,160.0,20.0]
[1718197490139,2.3107,160.12,159.98,20.0]
[1718197490342,6.162,160.18,159.98,100.0]
[1718197490550,2.3106,160.13,159.99,20.0]
[1718197490735,2.3105,160.14,159.97,4.72869309]
[1718197491045,0.51,160.13,159.98,2.22924374]
[1718197491562,0.17,160.09,159.98,2.22924374]
[1718197491724,0.17,160.09,159.97,2.49931]
[1718197491725,0.68,160.09,159.97,2.49931]
[1718197491925,6.0151,160.08,159.97,2.49931]
[1718197492128,0.34,160.07,159.97,2.49931]
[1718197492347,6.0151,160.08,159.97,2.49931]
[1718197492855,0.34,160.07,159.97,2.49931]
[1718197494828,2.6515,160.07,159.97,2.49931]
[1718197495028,0.34,160.07,159.97,2.49931]
[1718197495231,6.0151,160.08,159.97,2.49931]
[1718197495232,6.0151,160.08,159.97,102.49931]
[1718197495529,6.0151,160.08,159.98,20.0]
[1718197495735,6.0151,160.08,159.97,2.49931]
[1718197496630,0.34,160.07,159.97,2.49931]
[1718197497032,21.5178,160.18,160.03,26.23]
[1718197497334,21.5178,160.18,160.04,20.0]
[1718197499035,21.5178,160.18,160.04,100.0]
[1718197499239,21.5178,160.18,160.05,20.0]
[1718197499440,23.8277,160.18,160.05,22.22826875]
[1718197499655,21.5178,160.18,160.05,22.22826875]
[1718197499962,21.5178,160.18,160.06,20.0]
[1718197500132,2.31,160.17,160.04,20.0]
[1718197500449,21.5178,160.18,159.99,115.998]
[1718197500665,0.51,160.17,160.0,2.22896508]
[1718197500828,0.17,160.16,160.0,2.22896508]
[1718197501277,0.17,160.16,160.02,126.23]
[1718197501433,21.5178,160.18,160.02,126.23]
[1718197501748,21.5178,160.18,160.04,100.0]
[1718197501944,21.5178,160.18,160.05,20.0]
[1718197502129,21.5178,160.18,160.03,22.22854723]
[1718197502755,21.5178,160.18,160.04,0.17]
[1718197503034,21.5178,160.18,160.05,2.22826875]
[1718197503650,21.5178,160.18,160.05,22.22826875]
[1718197504639,0.34,160.17,160.05,22.22826875]
[1718197504963,0.34,160.17,160.06,26.23]
[1718197505271,100.0,160.25,160.05,22.22826875]
[1718197505272,2.3071,160.38,160.23,100.0]
[1718197505571,6.4214,160.42,160.24,20.0]
[1718197505733,2.3065,160.41,160.24,20.0]
[1718197505932,8.7279,160.42,160.24,20.0]
[1718197506135,2.3068,160.4,160.22,20.0]
[1718197506467,16.4214,160.42,160.22,20.0]
[1718197506468,116.4214,160.42,160.22,20.0]
[1718197506637,2.3072,160.37,160.2,26.23]
[1718197506969,16.4214,160.42,160.21,20.0]
[1718197506970,2.307,160.38,160.21,20.0]
[1718197507172,4.6143,160.37,160.21,20.0]
[1718197507379,6.1682,160.31,160.16,26.23]
[1718197507674,2.3088,160.25,160.08,26.23]
[1718197507979,10.0,160.28,160.08,26.23]
[1718197508147,6.1682,160.31,160.1,126.23]
[1718197508148,0.34,160.27,160.1,126.23]
[1718197508474,0.17,160.26,160.08,26.23]
[1718197508638,0.34,160.22,160.07,26.23]
[1718197508840,0.17,160.21,160.07,26.23]
[1718197509043,6.4273,160.2,160.07,26.23]
[1718197509474,0.34,160.19,160.07,26.23]
[1718197509677,0.17,160.18,160.05,2.22826875]
[1718197509877,0.51,160.19,160.05,2.22826875]
[1718197510466,22.8167,160.2,160.07,26.23]
[1718197510972,22.8167,160.2,160.09,26.19]
[1718197511151,6.2573,160.2,160.09,26.19]
[1718197511351,22.4981,160.27,160.13,26.19]
[1718197511559,22.4981,160.27,160.14,20.0]
[1718197512348,6.247,160.27,160.17,26.19]
[1718197512550,6.247,160.27,160.18,20.0]
[1718197513361,0.8096122,160.32,160.17,20.0]
[1718197513951,2.3084,160.28,160.17,20.0]
[1718197514260,2.3084,160.28,160.15,26.19]
[1718197514261,2.308,160.31,160.16,20.0]
[1718197514562,2.3081,160.3,160.16,20.0]
[1718197514766,2.3082,160.3,160.16,20.0]
[1718197514959,0.17,160.31,160.16,20.0]
[1718197514960,0.17,160.28,160.16,20.0]
[1718197515162,0.34,160.29,160.16,20.0]
[1718197515474,0.8096122,160.32,160.19,26.19]
[1718197515671,0.8096122,160.32,160.2,20.0]
[1718197516675,0.17,160.3,160.2,20.0]
[1718197516973,0.34,160.3,160.2,20.0]
[1718197517147,0.34,160.29,160.2,20.0]
[1718197517466,0.34,160.28,160.19,26.19]
[1718197517667,0.17,160.27,160.19,26.19]
[1718197518040,0.17,160.27,160.13,22.4981]
[1718197518041,0.17,160.26,160.15,26.19]
[1718197518249,0.51,160.26,160.15,26.19]
[1718197518575,0.17,160.25,160.15,26.19]
[1718197518743,0.34,160.25,160.15,26.19]
[1718197518949,0.8096122,160.32,160.15,26.19]
[1718197519145,0.17,160.3,160.16,20.0]
[1718197519446,6.4879,160.23,160.13,22.4981]
[1718197519651,16.43,160.21,160.1,4.8819345]
[1718197519862,16.43,160.21,160.1,6.4879]
[1718197519863,0.68,160.2,160.1,6.4879]
[1718197520056,0.51,160.2,160.1,6.4879]
[1718197520266,16.43,160.21,160.1,6.4879]
[1718197520662,6.4879,160.23,160.1,6.4879]
[1718197520870,6.4879,160.23,160.14,26.19]
[1718197521170,6.4879,160.23,160.15,20.0]
[1718197521752,15.3558,160.27,160.19,26.19]
[1718197522168,15.3558,160.27,160.2,20.0]
[1718197522389,0.8096122,160.32,160.2,20.0]
[1718197522668,0.8096122,160.32,160.23,26.19]
[1718197522867,0.8096122,160.32,160.24,65.0]
[1718197523563,0.8096122,160.32,160.24,20.0]
[1718197524381,0.8096122,160.32,160.27,26.19]
[1718197524591,0.8096122,160.32,160.28,20.0]
[1718197525986,0.8096122,160.32,160.27,26.19]
[1718197526164,0.8096122,160.32,160.24,26.19]
[1718197526353,0.8096122,160.32,160.25,65.0]
[1718197527882,0.8096122,160.32,160.31,26.19]
[1718197528069,6.2442,160.43,160.31,91.19]
[1718197528270,6.2442,160.43,160.35,26.19]
[1718197529085,6.2442,160.43,160.32,26.19]
[1718197529286,6.2442,160.43,160.37,26.19]
[1718197529693,15.0642,160.46,160.37,26.19]
[1718197529985,2.3063,160.43,160.26,26.19]
[1718197530185,6.0322,160.45,160.26,26.19]
[1718197530389,8.3382,160.45,160.26,26.19]
[1718197530567,2.3061,160.44,160.26,26.19]
[1718197530763,8.3382,160.45,160.26,26.19]
[1718197530980,0.34,160.44,160.26,26.19]
[1718197531188,0.17,160.42,160.27,20.0]
[1718197531386,6.0322,160.45,160.3,26.19]
[1718197531799,6.0322,160.45,160.27,20.0]
[1718197531800,6.0322,160.45,160.29,26.19]
[1718197532096,2.3066,160.41,160.24,26.19]
[1718197532274,100.0,160.41,160.26,26.19]
[1718197532472,100.0,160.39,160.22,51.144935]
[1718197532718,0.17,160.35,160.22,24.954935]
[1718197533014,0.17,160.35,160.22,26.19]
[1718197533015,0.17,160.33,160.22,26.19]
[1718197533182,0.68,160.33,160.22,26.19]
[1718197533384,0.17,160.31,160.16,35.0632]
[1718197533583,2.988,160.31,160.16,35.0632]
[1718197533780,0.68,160.31,160.16,35.0632]
[1718197535098,0.68,160.31,160.17,45.0]
[1718197535307,0.17,160.29,160.16,35.0632]
[1718197535594,0.68,160.29,160.16,35.0632]
[1718197537006,2.9883,160.29,160.16,35.0632]
[1718197537175,0.68,160.29,160.16,35.0632]
[1718197538249,0.68,160.29,160.17,20.0]
[1718197539107,6.1751,160.3,160.17,20.0]
[1718197539403,6.1751,160.3,160.22,26.19]
[1718197539605,6.1751,160.3,160.17,20.0]
[1718197539807,6.1751,160.3,160.16,8.8732]
[1718197539808,100.0,160.29,160.16,8.8732]
[1718197540311,100.0,160.29,160.11,31.1256556]
[1718197540530,2.6485,160.28,160.11,31.1256556]
[1718197540691,106.4981,160.4,160.24,26.19]
[1718197541007,106.4981,160.4,160.16,126.19]
[1718197541008,100.0,160.38,160.16,126.19]
[1718197541212,2.3069,160.39,160.2,26.19]
[1718197541384,2.3069,160.39,160.21,20.0]
[1718197541593,106.4981,160.4,160.21,20.0]
[1718197541594,100.0,160.38,160.21,20.0]
[1718197541786,2.3075,160.35,160.21,20.0]
[1718197542211,100.0,160.38,160.21,20.0]
[1718197542400,2.3077,160.34,160.21,20.0]
[1718197542705,6.1489,160.33,160.21,20.0]
[1718197542908,0.68,160.32,160.2,26.19]
[1718197543788,0.68,160.32,160.16,26.19]
[1718197543981,0.68,160.32,160.17,45.0]
[1718197544186,0.68,160.32,160.18,20.0]
[1718197544397,2.9878,160.32,160.18,20.0]
[1718197544606,0.68,160.32,160.18,20.0]
[1718197545119,0.17,160.27,160.16,26.19]
[1718197545304,0.17,160.27,160.12,51.164146]
[1718197545626,0.68,160.27,160.12,51.164146]
[1718197546028,0.68,160.27,160.12,24.974146]
[1718197546213,0.68,160.27,160.12,26.19]
[1718197546828,45.68,160.27,160.12,26.19]
[1718197547018,0.68,160.27,160.12,26.19]
[1718197547233,0.17,160.24,160.12,26.19]
[1718197547438,0.68,160.24,160.12,26.19]
[1718197548212,0.68,160.24,160.13,20.0]
[1718197548911,0.68,160.24,160.12,26.18]
[1718197549113,0.68,160.24,160.12,32.6645]
[1718197550329,0.68,160.24,160.13,20.0]
[1718197551711,0.68,160.24,160.14,26.18]
[1718197551917,6.4845,160.26,160.18,26.18]
[1718197552105,6.4845,160.26,160.15,45.0]
[1718197552313,6.4764,160.27,160.22,26.18]
[1718197552543,9.2293,160.36,160.22,26.18]
[1718197552839,100.0,160.31,160.15,26.18]
[1718197553051,2.3082,160.3,160.16,20.0]
[1718197553340,100.0,160.27,160.12,6.4845]
[1718197553513,102.3086,160.27,160.12,6.4845]
[1718197553713,0.17,160.26,160.11,26.18]
[1718197553945,0.68,160.27,160.11,26.18]
[1718197554243,16.4458,160.28,160.16,26.18]
[1718197555027,16.4458,160.28,160.17,20.0]
[1718197556313,16.4458,160.28,160.16,26.18]
[1718197556516,2.6486,160.27,160.09,24.975332]
[1718197556819,0.17,160.26,160.13,26.18]
[1718197557015,0.17,160.26,160.14,20.0]
[1718197558029,0.17,160.26,160.17,26.18]
[1718197559110,0.17,160.26,160.14,20.0]
[1718197559311,0.17,160.26,160.13,26.18]
[1718197559312,100.17,160.26,160.13,26.18]
[1718197559519,0.51,160.25,160.13,26.18]
[1718197559713,16.4458,160.28,160.13,26.18]
[1718197560051,16.4458,160.28,160.18,26.18]
[1718197560531,16.4458,160.28,160.14,26.18]
[1718197560737,16.4458,160.28,160.15,20.0]
[1718197561537,0.51,160.27,160.14,26.18]
[1718197561841,0.68,160.27,160.15,20.0]
[1718197562037,45.68,160.27,160.14,26.18]
[1718197562225,0.51,160.27,160.14,26.18]
[1718197562639,0.34,160.27,160.14,26.18]
[1718197563261,0.34,160.27,160.15,20.0]
[1718197564221,0.17,160.26,160.15,20.0]
[1718197564414,0.34,160.26,160.15,20.0]
[1718197564623,0.17,160.24,160.15,20.0]
[1718197564935,0.34,160.24,160.15,20.0]
[1718197565139,0.17,160.22,160.14,26.18]
[1718197565441,0.34,160.22,160.08,26.18]
[1718197565732,0.17,160.2,160.07,24.977097]
[1718197565932,0.34,160.2,160.07,24.977097]
[1718197566115,0.34,160.19,160.09,26.18]
[1718197566316,0.34,160.18,160.09,26.18]
[1718197566539,0.17,160.18,160.09,26.18]
[1718197567415,6.1176,160.21,160.09,26.18]
[1718197567617,0.51,160.2,160.09,26.18]
[1718197568035,6.1176,160.21,160.1,20.0]
[1718197568230,6.1176,160.21,160.13,26.18]
[1718197568426,6.1176,160.21,160.14,20.0]
[1718197568723,0.17,160.2,160.14,20.0]
[1718197569230,0.34,160.22,160.14,20.0]
[1718197569438,0.17,160.22,160.14,20.0]
[1718197570146,6.4567,160.26,160.14,20.0]
[1718197570660,6.4567,160.26,160.17,26.18]
[1718197570935,6.1458,160.31,160.21,26.18]
[1718197571138,6.1458,160.31,160.25,26.18]
[1718197571544,16.2848,160.34,160.25,26.18]
[1718197571729,6.2499,160.36,160.26,20.0]
[1718197573743,6.2499,160.36,160.29,26.18]
[1718197573943,6.636,160.42,160.26,20.0]
[1718197574148,6.636,160.42,160.33,26.18]